bitfinex/quotes_ETHUSD_20220227
["timestamp","ask_amount","ask_price","bid_price","bid_amount"]
[1645960102663,0.0061583,2807.4,2807.1,0.92847695]
[1645960102864,0.0061583,2807.4,2807.2,0.92666003]
[1645960103063,0.0061583,2807.4,2807.1,0.00181692]
[1645960103463,4.4898,2808.2,2807.1,0.92843239]
[1645960103664,0.0061583,2807.4,2807.1,0.92843239]
[1645960104665,1.14414089,2808.0,2807.2,1.30402771]
[1645960104914,0.00277819,2807.4,2807.2,1.30402771]
[1645960105914,4.4898,2808.2,2807.2,1.30402771]
[1645960105915,0.5363177,2807.8,2807.2,1.30402771]
[1645960106115,0.00277819,2807.4,2807.2,1.30402771]
[1645960106917,0.54005409,2808.1,2807.2,1.30402771]
[1645960107321,0.00277819,2807.4,2807.2,1.30402771]
[1645960108123,0.54005409,2808.1,2807.2,1.30402771]
[1645960108572,0.00615495,2807.4,2807.2,1.30402771]
[1645960109370,3.1745,2808.2,2807.2,1.30402771]
[1645960109568,1.37246807,2807.9,2807.2,1.30402771]
[1645960109771,0.00615495,2807.4,2807.2,1.30402771]
[1645960110569,1.37246807,2807.9,2807.2,1.30402771]
[1645960110869,1.37246807,2807.9,2807.6,0.00786261]
[1645960110870,0.54024545,2807.8,2807.6,0.00786261]
[1645960111068,0.53932064,2807.8,2807.6,0.00786261]
[1645960111370,3.1745,2808.2,2807.6,0.00786261]
[1645960112070,0.00615423,2808.0,2807.6,0.00786261]
[1645960112718,0.00615423,2808.0,2807.6,0.36286261]
[1645960112918,0.00615423,2808.0,2807.7,0.1424]
[1645960113119,0.00096,2808.9,2807.7,18.4904]
[1645960113319,0.00615435,2807.9,2807.8,0.355]
[1645960113518,0.00615435,2807.9,2807.8,1.60242167]
[1645960114017,0.00615435,2807.9,2807.8,2.60242167]
[1645960114319,1.13615691,2808.9,2807.8,2.71210167]
[1645960114518,0.00615429,2808.0,2807.9,0.1424]
[1645960114717,0.00615429,2808.0,2807.9,1.71702206]
[1645960114921,0.00615429,2808.0,2807.9,2.2328332]
[1645960115218,0.00615429,2808.0,2807.9,1.66202206]
[1645960115419,0.00615429,2808.0,2807.8,1.1424]
[1645960115420,1.120301,2808.4,2807.7,8.123]
[1645960115619,1.120301,2808.4,2807.7,7.123]
[1645960115817,0.00615416,2808.1,2807.7,7.123]
[1645960116665,0.5,2808.2,2807.7,7.123]
[1645960116866,0.00615423,2808.0,2807.7,8.123]
[1645960117871,1.08642205,2807.9,2807.7,8.123]
[1645960118474,1.08642205,2807.9,2807.7,7.123]
[1645960118874,0.355,2807.8,2807.7,7.073]
[1645960119475,3.855,2807.8,2807.7,7.073]
[1645960119672,0.355,2807.8,2807.7,7.073]
[1645960119924,1.0925764,2807.9,2807.7,7.073]
[1645960120132,1.08642205,2807.9,2807.7,7.073]
[1645960120325,1.44142205,2807.9,2807.7,7.073]
[1645960120525,1.44757646,2807.9,2807.7,7.073]
[1645960121526,1.44142205,2807.9,2807.7,7.073]
[1645960121725,1.4475764,2807.9,2807.7,7.073]
[1645960122530,1.44142205,2807.9,2807.7,7.073]
[1645960122832,1.4475764,2807.9,2807.7,7.073]
[1645960123229,1.0925764,2807.9,2807.7,7.073]
[1645960123866,1.08642205,2807.9,2807.7,7.073]
[1645960124068,1.09236869,2807.9,2807.7,7.073]
[1645960125068,1.08642205,2807.9,2807.7,7.073]
[1645960125267,1.09236869,2807.9,2807.7,7.073]
[1645960126271,1.08642205,2807.9,2807.7,7.073]
[1645960126469,1.09236869,2807.9,2807.7,7.073]
[1645960127529,1.08642205,2807.9,2807.7,7.073]
[1645960127732,1.09222699,2807.9,2807.7,7.073]
[1645960128529,1.08642205,2807.9,2807.7,7.073]
[1645960128931,1.09222699,2807.9,2807.7,7.073]
[1645960129934,1.08642205,2807.9,2807.7,7.073]
[1645960130131,1.09222699,2807.9,2807.7,7.073]
[1645960130837,1.09222699,2807.9,2807.7,5.467486]
[1645960131078,0.52967084,2807.8,2807.7,5.467486]
[1645960133185,0.52967084,2807.8,2807.7,5.021886]
[1645960135018,0.52210459,2807.8,2807.7,5.021886]
[1645960135420,0.52210459,2807.8,2807.7,5.121886]
[1645960136222,0.52210459,2807.8,2807.7,4.676286]
[1645960139157,0.52210459,2807.8,2807.7,4.230686]
[1645960142158,0.52210459,2807.8,2807.7,4.145986]
[1645960144720,1.10567611,2807.9,2807.7,4.145986]
[1645960146162,1.10567611,2807.9,2807.8,0.1]
[1645960147063,0.00277814,2808.0,2807.8,0.1]
[1645960147868,0.669849,2808.3,2807.8,0.1]
[1645960148066,0.00277819,2808.0,2807.8,0.1]
[1645960148267,1.024849,2808.3,2807.7,4.045986]
[1645960148469,1.42521373,2807.9,2807.7,4.045986]
[1645960148668,1.63881373,2807.9,2807.7,4.045986]
[1645960150814,1.63881373,2807.9,2807.7,2.44040372]
[1645960153665,0.2136,2807.9,2807.7,2.44040372]
[1645960154269,0.2136,2807.9,2807.7,2.26220372]
[1645960155068,0.2136,2807.9,2807.8,3.5]
[1645960155467,0.00615391,2808.1,2807.7,2.26220372]
[1645960156270,1.43736082,2808.2,2807.7,2.26220372]
[1645960156468,0.00615401,2808.1,2807.7,2.26220372]
[1645960157425,0.669849,2808.4,2807.7,2.26220372]
[1645960157623,0.00615401,2808.1,2807.7,2.26220372]
[1645960158628,1.29723408,2808.2,2807.7,2.26220372]
[1645960158927,0.00615401,2808.1,2807.7,2.26220372]
[1645960159925,0.669849,2808.3,2807.7,2.26220372]
[1645960160227,0.00615401,2808.1,2807.7,2.26220372]
[1645960160425,1.44769613,2808.1,2807.7,2.26220372]
[1645960161060,0.669849,2808.3,2807.7,2.26220372]
[1645960161264,0.00615401,2808.1,2807.7,2.26220372]
[1645960162065,0.00615401,2808.1,2807.7,3.48586646]
[1645960162367,0.669849,2808.3,2807.7,3.48586646]
[1645960162568,0.00615401,2808.1,2807.7,3.48586646]
[1645960163167,0.00615401,2808.1,2807.7,3.34396646]
[1645960163370,0.669849,2808.4,2807.7,4.34396646]
[1645960163570,3.209,2808.6,2807.8,3.5]
[1645960163771,0.00615401,2808.1,2807.8,5.03771387]
[1645960164169,0.00615401,2808.1,2807.9,0.1424]
[1645960164369,0.00615401,2808.1,2807.9,0.35575684]
[1645960164571,0.00615401,2808.1,2807.9,0.4424]
[1645960164814,0.670809,2808.9,2808.0,4.44748027]
[1645960165014,0.0061541,2808.1,2808.0,3.5]
[1645960165216,0.0061541,2808.1,2808.0,2.24341249]
[1645960165414,0.0061541,2808.1,2808.0,1.24341249]
[1645960165812,1.18372043,2808.7,2808.0,1.24341249]
[1645960166013,0.00615404,2808.2,2808.1,0.94341249]
[1645960166614,0.53139738,2808.2,2808.1,0.94341249]
[1645960167014,0.52524334,2808.2,2808.1,0.94341249]
[1645960167318,0.670809,2808.9,2808.3,1.23237119]
[1645960167524,0.52498082,2808.8,2808.4,4.44341249]
[1645960167720,0.52498082,2808.7,2808.5,0.94341249]
[1645960167921,0.02556645,2809.3,2808.3,3.26616465]
[1645960168120,0.52454996,2809.2,2808.4,0.94210302]
[1645960168579,0.00615314,2808.9,2808.4,0.94210302]
[1645960168772,0.52454996,2808.8,2808.4,4.97332097]
[1645960169070,0.52454996,2808.8,2808.5,1.11109971]
[1645960169369,0.52454996,2808.8,2808.5,0.3]
[1645960169772,0.00615332,2808.8,2808.5,0.48486438]
[1645960169974,0.00615332,2808.8,2808.6,1.05691976]
[1645960170371,0.00615332,2808.8,2808.6,1.35691976]
[1645960170571,1.07282216,2809.3,2808.6,1.35691976]
[1645960170773,0.52413662,2809.2,2808.6,1.35691976]
[1645960170976,0.00277484,2808.8,2808.6,1.35691976]
[1645960171172,0.00277484,2808.8,2808.3,4.84833488]
[1645960171374,0.00096,2809.1,2808.8,0.00083112]
[1645960171579,0.52509662,2809.2,2808.8,0.00083112]
[1645960171774,0.52413662,2809.2,2808.8,0.00083112]
[1645960174627,0.00277174,2809.1,2808.8,0.00083112]
[1645960175429,0.52413662,2809.2,2808.8,0.00083112]
[1645960175630,0.00615605,2809.1,2808.8,0.00083112]
[1645960175830,0.52413662,2809.0,2808.8,0.00083112]
[1645960176075,0.52413662,2808.9,2808.8,0.00083112]
[1645960176878,0.00615617,2809.0,2808.8,0.00083112]
[1645960177077,0.52413662,2808.9,2808.8,0.00083112]
[1645960177483,0.00615617,2809.0,2808.8,0.00083112]
[1645960177786,0.52413662,2808.9,2808.8,0.00083112]
[1645960178182,0.00615611,2809.0,2808.8,0.00083112]
[1645960178385,0.52413662,2808.9,2808.8,0.00083112]
[1645960178585,0.00615611,2809.0,2808.8,0.00083112]
[1645960178785,0.52413662,2808.9,2808.8,0.00083112]
[1645960178984,0.52413662,2809.2,2808.8,0.00083112]
[1645960179484,0.00615611,2809.0,2808.8,0.00083112]
[1645960179685,0.52413662,2808.9,2808.8,0.00083112]
[1645960180421,0.52413662,2809.2,2808.8,0.00083112]
[1645960180618,0.00615617,2809.0,2808.8,0.00083112]
[1645960180819,0.52413662,2808.9,2808.8,0.00083112]
[1645960181118,0.00615617,2809.0,2808.8,0.00083112]
[1645960181321,0.52413662,2808.9,2808.8,0.00083112]
[1645960182220,0.00615611,2809.0,2808.8,0.00083112]
[1645960182423,0.52413662,2808.9,2808.8,0.00083112]
[1645960182627,0.52413662,2809.2,2808.8,0.00083112]
[1645960183028,0.00615611,2809.0,2808.8,0.00083112]
[1645960183223,0.52413662,2808.9,2808.8,0.00083112]
[1645960183423,0.00615611,2809.0,2808.8,0.00083112]
[1645960183675,0.52413662,2808.9,2808.8,0.00083112]
[1645960183876,0.52413662,2809.2,2808.8,0.00083112]
[1645960184074,0.00615611,2809.0,2808.8,0.00083112]
[1645960184274,0.52413662,2808.9,2808.8,0.00083112]
[1645960184677,0.00615611,2809.0,2808.8,0.00083112]
[1645960184876,0.52413662,2808.9,2808.8,0.00083112]
[1645960185074,0.52413662,2809.2,2808.8,0.00083112]
[1645960185275,0.00615611,2809.0,2808.8,0.00083112]
[1645960185476,0.52413662,2808.9,2808.8,0.00083112]
[1645960185877,0.00615611,2809.0,2808.8,0.00083112]
[1645960186077,0.52413662,2808.9,2808.8,0.00083112]
[1645960186578,0.00615611,2809.0,2808.8,0.00083112]
[1645960186777,0.52413662,2808.9,2808.8,0.00083112]
[1645960187177,0.00615611,2809.0,2808.8,0.00083112]
[1645960187424,0.52413662,2808.9,2808.8,0.00083112]
[1645960187823,0.00615617,2809.0,2808.8,0.00083112]
[1645960188023,0.52413662,2808.9,2808.8,0.00083112]
[1645960188227,0.00615617,2809.0,2808.8,0.00083112]
[1645960188425,0.52413662,2808.9,2808.8,0.00083112]
[1645960188628,0.52413662,2809.2,2808.8,0.00083112]
[1645960189028,0.00615611,2809.0,2808.8,0.00083112]
[1645960189227,0.52413662,2808.9,2808.8,0.00083112]
[1645960189627,0.00615611,2809.0,2808.8,0.00083112]
[1645960189830,0.52413662,2808.9,2808.8,0.00083112]
[1645960190329,0.87913662,2808.9,2808.8,0.00083112]
[1645960190928,4.37913662,2808.9,2808.8,0.00083112]
[1645960191571,0.355,2808.7,2808.0,0.25]
[1645960191773,0.52413662,2808.6,2807.8,1.1645]
[1645960191970,0.52413662,2808.5,2807.9,0.92920205]
[1645960192169,0.5255301,2808.8,2807.9,0.92920205]
[1645960192377,1.23018157,2808.2,2807.8,1.1645]
[1645960192574,0.00139348,2808.8,2807.9,0.92919378]
[1645960192775,0.89083569,2808.8,2807.9,0.92919378]
[1645960192975,0.89083569,2808.8,2807.7,3.56270372]
[1645960192976,4.38944221,2808.7,2807.7,3.56270372]
[1645960193175,0.355,2808.5,2807.7,2.26270372]
[1645960193383,0.355,2808.3,2807.7,2.26270372]
[1645960193576,0.53444221,2808.2,2807.7,2.26270372]
[1645960193775,1.29252413,2807.8,2807.7,2.26270372]
[1645960198592,1.29252413,2807.8,2807.7,2.12030372]
[1645960198777,5.69523317,2807.8,2807.7,2.12030372]
[1645960198974,2.19523317,2807.8,2807.7,2.12030372]
[1645960199276,2.19523317,2807.8,2807.7,2.07920372]
[1645960200277,1.84023317,2807.8,2807.7,2.07920372]
[1645960202324,2.19523317,2807.8,2807.7,2.07920372]
[1645960202926,1.84023317,2807.8,2807.7,2.07920372]
[1645960208981,3.355,2807.7,2807.1,0.00181692]
[1645960209179,3.355,2807.7,2807.1,1.692e-05]
[1645960209180,1.1422,2807.5,2807.1,1.692e-05]
[1645960209378,0.355,2807.2,2807.1,1.692e-05]
[1645960209823,0.90270904,2807.2,2807.1,1.692e-05]
[1645960210027,0.54770904,2807.2,2807.1,1.692e-05]
[1645960211529,0.54770904,2807.2,2805.7,20.0975]
[1645960211726,0.54770904,2807.1,2807.0,0.00615884]
[1645960211929,3.2435,2807.4,2807.0,0.00615884]
[1645960212126,0.52377747,2807.3,2807.0,0.00615884]
[1645960212731,4.02377747,2807.3,2806.3,1.18588885]
[1645960212932,4.02377747,2807.2,2807.0,0.00615884]
[1645960213132,3.2435,2807.4,2807.0,0.00615884]
[1645960213332,0.52349664,2807.3,2807.0,0.00615884]
[1645960213778,0.52349664,2807.3,2806.6,0.02463906]
[1645960213976,1.01762982,2807.2,2806.3,1.18588885]
[1645960214180,1.01762982,2807.2,2807.0,0.00615884]
[1645960214576,1.01762982,2807.2,2806.3,0.77138675]
[1645960215676,1.01673314,2807.2,2806.4,0.00224767]
[1645960216479,1.01673314,2807.2,2806.5,0.00338495]
[1645960217540,0.355,2807.1,2806.1,1.04714767]
[1645960217735,1.01673314,2807.2,2806.5,0.00338495]
[1645960218637,1.01673314,2807.2,2806.1,2.04714767]
[1645960218841,0.00615859,2807.0,2806.5,0.00615975]
[1645960219939,1.01673314,2807.2,2806.4,1.42124076]
[1645960220141,0.00615871,2806.9,2806.5,0.00615965]
[1645960220538,0.00615871,2806.9,2806.4,0.98210041]
[1645960221173,1.01673314,2807.2,2806.4,0.98210041]
[1645960221375,1.37173314,2807.2,2806.4,0.98210041]
[1645960221977,1.01673314,2807.2,2806.4,0.98210041]
[1645960222580,0.00279738,2806.9,2806.4,0.98210041]
[1645960222781,0.00279738,2806.9,2806.4,0.88210041]
[1645960223183,0.00279738,2806.9,2806.4,1.23710041]
[1645960223383,1.1568,2807.3,2806.4,1.23710041]
[1645960223582,1.1568,2807.3,2806.5,0.00223881]
[1645960223783,0.0027983,2806.8,2806.5,0.00223881]
[1645960223981,0.0027983,2806.8,2806.4,1.23710041]
[1645960224832,0.00615982,2806.7,2806.4,12.11326106]
[1645960225129,0.00615982,2806.7,2806.5,13.54931718]
[1645960225326,0.00615982,2806.7,2806.6,12.16246086]
[1645960225528,0.00615982,2806.7,2806.6,13.32761843]
[1645960225727,0.00615982,2806.7,2806.6,4.75761843]
[1645960225927,4.489,2808.1,2806.7,0.355]
[1645960226129,4.489,2808.1,2806.9,0.54671782]
[1645960226130,0.2136,2808.1,2806.9,0.54671782]
[1645960226327,0.2136,2808.1,2807.1,0.355]
[1645960226529,0.2136,2808.1,2807.2,0.355]
[1645960226727,0.2136,2808.1,2807.2,0.53887885]
[1645960227132,1.42637197,2808.1,2807.2,0.53887885]
[1645960227330,0.00615856,2807.8,2807.2,0.53887885]
[1645960227533,0.00615856,2807.8,2807.2,0.43887885]
[1645960228235,1.42637197,2808.1,2807.5,1.22116913]
[1645960228435,0.53286602,2808.0,2807.5,1.22116913]
[1645960228679,0.2136,2808.1,2807.5,1.22116913]
[1645960228680,0.00615874,2807.6,2807.5,1.57616913]
[1645960228887,0.00615874,2807.6,2807.5,2.03289016]
[1645960229279,0.00615874,2807.6,2807.5,2.87616913]
[1645960229585,1.42138574,2808.6,2808.1,1.32072657]
[1645960229779,1.42138574,2808.6,2807.5,2.655]
[1645960229780,0.00615868,2807.7,2807.5,2.655]
[1645960229980,0.00615868,2807.7,2807.5,1.3]
[1645960230180,0.00615868,2807.7,2807.4,0.3]
[1645960230389,0.00615868,2807.7,2807.3,0.655]
[1645960230787,0.00096,2808.5,2807.9,1.1226288]
[1645960230985,0.00615868,2807.7,2807.3,0.655]
[1645960231187,0.00615868,2807.7,2807.3,0.355]
[1645960231385,0.00096,2808.5,2807.9,0.0017562]
[1645960231584,0.53330697,2808.5,2807.9,0.0017562]
[1645960232647,1.07005024,2808.1,2807.9,0.0017562]
[1645960232944,0.00096,2808.5,2807.9,0.0017562]
[1645960233144,0.67706652,2808.6,2807.9,0.0017562]
[1645960233344,0.53370652,2808.5,2807.9,0.0017562]
[1645960234347,1.01609901,2808.2,2807.9,0.0017562]
[1645960234549,0.53370652,2808.1,2807.9,0.0017562]
[1645960235748,0.53986466,2808.1,2807.9,0.0017562]
[1645960236088,0.53370652,2808.0,2807.9,0.0017562]
[1645960237686,0.0061582,2808.1,2807.9,0.0017562]
[1645960237986,0.53458356,2808.0,2807.9,0.0017562]
[1645960239389,0.0061582,2808.1,2807.9,0.0017562]
[1645960239589,0.53458356,2808.0,2807.9,0.0017562]
[1645960240624,0.0061582,2808.1,2807.9,0.0017562]
[1645960240826,0.53458356,2808.0,2807.9,0.0017562]
[1645960241828,0.00604273,2808.1,2807.9,0.0017562]
[1645960242032,0.53458356,2808.0,2807.9,0.0017562]
[1645960243033,0.00604273,2808.1,2807.9,0.0017562]
[1645960243234,0.53458356,2808.0,2807.9,0.0017562]
[1645960243681,4.38958356,2808.0,2807.9,0.0017562]
[1645960243888,4.53198356,2808.0,2807.9,0.0017562]
[1645960244677,5.20183256,2808.0,2807.9,0.0017562]
[1645960245281,5.50183256,2808.0,2807.9,0.0017562]
[1645960245679,4.83198356,2808.0,2807.9,0.0017562]
[1645960247537,1.03673962,2807.0,2806.6,1.01859501]
[1645960247741,1.03673962,2807.0,2806.7,0.9379595]
[1645960247936,1.03673962,2807.0,2806.7,0.00580576]
[1645960248736,1.03673962,2807.0,2806.0,2.79021322]
[1645960248939,1.03673962,2807.0,2806.7,0.00582088]
[1645960249837,3.2157,2807.4,2806.5,1.26917849]
[1645960250040,0.53486744,2807.3,2806.7,0.00582088]
[1645960250642,0.53486744,2807.3,2806.5,0.82959937]
[1645960250841,1.27896967,2807.2,2806.6,0.93202494]
[1645960252478,1.27896967,2807.2,2806.6,0.93505626]
[1645960253579,1.27896967,2807.2,2806.6,0.48662494]
[1645960253779,1.27896967,2807.2,2806.6,0.00582455]
[1645960254578,1.27896967,2807.2,2806.6,1.23915651]
[1645960254821,1.27896967,2807.2,2806.6,1.23333196]
[1645960255025,1.27896967,2807.2,2806.6,1.23915651]
[1645960255622,1.27896967,2807.2,2806.6,0.00582455]
[1645960256023,1.27896967,2807.2,2806.3,0.19890622]
[1645960256226,1.27896967,2807.2,2806.6,0.00582011]
[1645960256623,1.27896967,2807.2,2806.2,0.23033436]
[1645960256624,1.27896967,2807.2,2806.2,10.87]
[1645960256824,1.27896967,2807.2,2806.6,1.3542346]
[1645960257224,3.2157,2807.4,2806.2,12.0490065]
[1645960257725,3.2157,2807.4,2806.2,1.1790065]
[1645960257930,3.5,2807.3,2806.1,9.19579116]
[1645960258125,3.2157,2807.4,2806.1,9.49579116]
[1645960258426,0.00281895,2806.8,2806.4,1.22380064]
[1645960258877,0.00281895,2806.8,2806.4,1.37556522]
[1645960259082,3.2157,2807.4,2806.9,0.0007609]
[1645960260078,1.26187846,2807.1,2806.9,0.0007609]
[1645960262319,1.26469741,2807.1,2806.9,0.0007609]
[1645960263127,1.26187846,2807.1,2806.9,0.0007609]
[1645960263323,0.00615934,2807.1,2806.9,0.0007609]
[1645960264324,1.1862,2807.3,2806.9,0.0007609]
[1645960264525,0.00615934,2807.1,2806.9,0.0007609]
[1645960265525,4.69731381,2807.4,2806.9,0.0007609]
[1645960265828,0.00615934,2807.1,2806.9,0.0007609]
[1645960266672,4.69731381,2807.4,2806.9,0.0007609]
[1645960267072,0.00615934,2807.1,2806.9,0.0007609]
[1645960267977,1.48161381,2807.4,2806.9,0.0007609]
[1645960268179,0.00615934,2807.1,2806.9,0.0007609]
[1645960269180,1.48161381,2807.4,2806.9,0.0007609]
[1645960269378,0.00615934,2807.1,2806.9,0.0007609]
[1645960270432,1.48161381,2807.4,2806.9,0.0007609]
[1645960270632,0.00615934,2807.1,2806.9,0.0007609]
[1645960271630,1.48161381,2807.4,2806.9,0.0007609]
[1645960271831,0.00615934,2807.1,2806.9,0.0007609]
[1645960272637,1.48161381,2807.4,2806.9,0.0007609]
[1645960273038,0.00615934,2807.1,2806.9,0.0007609]
[1645960273594,0.53730248,2807.0,2806.9,0.0007609]
[1645960274185,0.00615934,2807.1,2806.9,0.0007609]
[1645960274984,0.00615934,2807.1,2806.9,4.6387075]
[1645960275185,7.8515,2808.1,2807.0,0.93171794]
[1645960275386,0.53732093,2808.0,2807.0,4.63954464]
[1645960275586,0.00615934,2807.1,2807.0,5.06227812]
[1645960275786,0.00615934,2807.1,2807.0,3.4939588]
[1645960276189,0.00615934,2807.1,2807.0,2.4939588]
[1645960276387,1.48053068,2808.1,2807.6,1.25274627]
[1645960276587,0.53744569,2808.0,2807.1,1.2063]
[1645960276788,0.53744569,2808.0,2807.2,0.92625658]
[1645960277833,0.00597539,2807.7,2807.2,1.07877958]
[1645960278033,0.00597539,2807.7,2807.3,0.92625658]
[1645960278034,0.53744569,2807.6,2807.3,0.92625658]
[1645960278233,0.00597539,2807.7,2807.3,0.92625658]
[1645960278438,0.54313557,2807.6,2807.3,0.92625658]
[1645960278636,0.54313557,2807.6,2807.4,1.2820633]
[1645960279037,0.02306691,2808.1,2807.7,0.68655941]
[1645960279236,0.54311683,2808.0,2807.7,0.68655941]
[1645960280236,0.355,2808.4,2807.9,1.27092287]
[1645960280437,0.54329677,2808.3,2807.9,1.27092287]
[1645960280636,0.54329677,2808.3,2807.7,0.68655941]
[1645960281491,0.002498,2808.1,2807.7,0.68655941]
[1645960282487,1.0148208,2808.2,2807.7,0.68655941]
[1645960282688,0.00583944,2808.0,2807.7,0.68655941]
[1645960282887,0.54329677,2807.9,2807.7,0.68655941]
[1645960283789,0.54329677,2807.8,2807.7,0.68655941]
[1645960283991,0.00249676,2807.9,2807.7,0.68655941]
[1645960284825,0.54329677,2808.1,2807.7,0.68655941]
[1645960285029,0.00249471,2807.9,2807.7,0.68655941]
[1645960285831,0.54579148,2807.9,2807.7,0.68655941]
[1645960286031,0.54329677,2807.9,2807.7,0.68655941]
[1645960286232,0.54579148,2807.9,2807.7,0.68655941]
[1645960286637,0.54329677,2807.8,2807.7,0.68655941]
[1645960287035,0.00249471,2807.9,2807.7,0.68655941]
[1645960287036,0.54579148,2807.9,2807.7,0.68655941]
[1645960287234,0.54329677,2807.8,2807.7,0.68655941]
[1645960287635,0.00584065,2807.9,2807.7,0.68655941]
[1645960287835,0.54329677,2807.8,2807.7,0.68655941]
[1645960288235,0.54913742,2807.9,2807.7,0.68655941]
[1645960288436,0.54329677,2807.8,2807.7,0.68655941]
[1645960288684,0.54924967,2807.9,2807.7,0.68655941]
[1645960288883,0.54329677,2807.8,2807.7,0.68655941]
[1645960289085,0.54924967,2807.9,2807.7,0.68655941]
[1645960289291,0.54329677,2807.8,2807.7,0.68655941]
[1645960291189,0.0059529,2807.9,2807.7,0.68655941]
[1645960291389,0.54329677,2807.8,2807.7,0.68655941]
[1645960291793,0.3609529,2807.9,2807.7,0.68655941]
[1645960291992,0.54329677,2807.8,2807.7,0.68655941]
[1645960293230,0.54329677,2808.0,2807.7,0.68655941]
[1645960293427,0.00583325,2807.9,2807.7,0.68655941]
[1645960293726,0.54329677,2807.8,2807.7,0.68655941]
[1645960294127,0.00583325,2807.9,2807.7,0.68655941]
[1645960294331,0.54329677,2807.8,2807.7,0.68655941]
[1645960294927,0.00583325,2807.9,2807.7,0.68655941]
[1645960295130,0.00583325,2807.9,2807.8,0.92245815]
[1645960295332,0.00583325,2807.9,2807.8,1.06485815]
[1645960295530,0.00583325,2807.9,2807.8,2.26439448]
[1645960295730,0.00096,2808.7,2807.8,2.26439448]
[1645960295933,0.00584116,2808.0,2807.9,1.09123468]
[1645960296181,0.00584116,2808.0,2807.9,1.53363468]
[1645960296380,0.00584116,2808.0,2807.9,12.76290647]
[1645960296581,0.00584116,2808.0,2807.9,13.76290647]
[1645960296779,0.21499348,2808.8,2807.9,14.76290647]
[1645960296985,0.21499348,2808.8,2808.5,1.3145604]
[1645960297183,0.54684348,2808.7,2808.0,2.54239911]
[1645960297385,0.02336067,2808.5,2808.4,0.3]
[1645960297786,0.02336067,2808.5,2808.3,0.3]
[1645960297787,0.57020415,2808.5,2808.3,0.3]
[1645960297989,0.54684348,2808.4,2808.3,0.3]
[1645960298186,0.54684348,2808.4,2808.3,1.72833518]
[1645960298387,0.54684348,2808.5,2808.3,1.42833518]
[1645960298585,0.54684348,2808.5,2808.3,1.72833518]
[1645960298787,0.54684348,2808.5,2808.4,11.02877907]
[1645960299188,0.02335829,2809.0,2808.6,7.0]
[1645960299390,0.00096,2809.2,2808.6,8.17488148]
[1645960299594,0.02337364,2809.0,2808.9,1.34472046]
[1645960299833,0.02337364,2809.0,2808.7,0.32214628]
[1645960300238,0.02337364,2809.0,2808.7,0.62214628]
[1645960300441,0.67315496,2810.0,2808.8,6.18011127]
[1645960300639,0.67315496,2810.0,2808.9,0.1423]
[1645960300837,0.67315496,2810.0,2809.0,10.87]
[1645960301038,0.67315496,2810.0,2809.1,1.0]
[1645960301242,4.38675496,2809.9,2809.1,1.0]
[1645960301441,0.88675496,2809.9,2809.0,0.6]
[1645960301842,0.2136,2809.9,2809.0,0.3]
[1645960302039,3.7136,2809.9,2808.7,15.43461]
[1645960302247,0.88675496,2809.9,2808.8,0.21849105]
[1645960302641,1.18316515,2809.6,2808.7,3.31956]
[1645960302843,1.18316515,2809.6,2808.7,2.47310074]
[1645960303042,0.0061627,2809.5,2808.9,0.00616409]
[1645960304109,0.00096,2809.8,2808.8,0.16287637]
[1645960304307,0.00096,2809.8,2808.9,0.00616394]
[1645960304308,0.00616288,2809.3,2808.9,0.00616394]
[1645960305106,0.02560711,2809.8,2808.8,0.30517637]
[1645960305312,0.00096,2809.8,2808.8,0.30517637]
[1645960305512,0.006163,2809.2,2808.9,0.00616384]
[1645960305715,0.006163,2809.2,2808.9,11.23116384]
[1645960306113,0.006163,2809.2,2809.0,0.20736154]
[1645960306318,0.006163,2809.2,2809.1,1.03215]
[1645960306513,0.00096,2809.8,2809.2,11.4868929]
[1645960306713,0.2136,2809.9,2809.3,0.1423]
[1645960306914,0.00096,2810.5,2809.4,1.0]
[1645960307114,1.21854478,2809.9,2809.4,1.0]
[1645960307335,1.21854478,2809.9,2809.3,0.3]
[1645960307545,1.21854478,2809.9,2809.2,0.46680422]
[1645960307740,1.21854478,2809.9,2809.0,1.833]
[1645960307943,0.00375367,2809.8,2809.0,2.68412054]
[1645960308540,1.26233315,2809.4,2809.0,2.68412054]
[1645960308742,1.26233315,2809.4,2808.8,0.1423]
[1645960308941,0.00096,2809.8,2808.7,0.1423]
[1645960308942,0.00279367,2809.5,2808.7,0.1423]
[1645960309145,0.00279367,2809.5,2808.6,8.23506666]
[1645960309341,0.00279367,2809.5,2808.6,8.39836973]
[1645960309542,0.2136,2808.7,2808.6,8.23506666]
[1645960309740,0.2136,2808.7,2808.6,0.70986666]
[1645960309941,1.27622187,2809.0,2808.6,0.70986666]
[1645960310147,0.1424,2809.7,2808.6,0.89276093]
[1645960310342,0.00616584,2809.1,2808.6,0.70986666]
[1645960311187,1.23335399,2809.1,2808.6,0.70986666]
[1645960311487,0.73952003,2809.1,2808.7,0.00616699]
[1645960312391,0.73335399,2809.1,2808.6,0.70986666]
[1645960312590,0.73952008,2809.1,2808.8,0.00616693]
[1645960313193,4.59452008,2809.1,2808.8,0.00616693]
[1645960313591,4.58835399,2809.1,2808.6,0.70986666]
[1645960313991,4.59452013,2809.1,2808.8,0.00616687]
[1645960314492,1.09452013,2809.1,2808.8,0.00616687]
[1645960314829,1.08835399,2809.1,2808.6,0.70986666]
[1645960315133,0.73952013,2809.1,2808.8,0.00616687]
[1645960315531,1.09452013,2809.1,2808.8,0.00616687]
[1645960316131,1.08835399,2809.1,2808.6,0.70986666]
[1645960316332,1.09452013,2809.1,2808.8,0.00616687]
[1645960316933,0.73952013,2809.1,2808.8,0.00616687]
[1645960317133,0.00616614,2809.1,2808.8,0.00616687]
[1645960317336,0.00096,2809.3,2808.6,0.70986666]
[1645960317541,3.6424,2809.6,2808.8,0.00616687]
[1645960317542,0.00616614,2809.1,2808.8,0.00616687]
[1645960318141,0.00616614,2809.1,2808.9,1.20835718]
[1645960318341,0.00616614,2809.1,2808.9,12.43335718]
[1645960318619,0.02465839,2809.8,2809.0,0.20282187]
[1645960318620,0.00096,2809.8,2809.0,0.20282187]
[1645960318809,0.67315496,2810.2,2808.9,12.73335718]
[1645960318810,0.00096,2810.0,2809.6,1.67738014]
[1645960319010,0.00096,2810.1,2809.6,1.67738014]
[1645960319210,0.50425083,2810.1,2809.6,1.67738014]
[1645960319412,0.50425083,2810.0,2809.0,2.69543117]
[1645960319613,0.50425083,2809.9,2809.0,2.69543117]
[1645960319817,0.50521083,2809.8,2809.1,1.2449]
[1645960320014,0.50425083,2809.7,2809.1,1.41215239]
[1645960320222,0.00279366,2810.0,2809.1,12.28215239]
[1645960320415,0.00279366,2810.0,2809.4,0.20282162]
[1645960320416,1.1290294,2810.0,2809.4,0.20282162]
[1645960320619,0.47904794,2809.9,2809.2,0.19375063]